bitfinex/quotes_ETHUSD_20240711
["timestamp","ask_amount","ask_price","bid_price","bid_amount"]
[1720671233289,1.02040413,3089.6,3089.0,5.09489]
[1720671233487,0.68015503,3089.7,3089.5,0.794]
[1720671233708,0.68015503,3089.7,3089.6,2.4605]
[1720671233921,1.02040413,3089.8,3089.6,5.78595]
[1720671234213,1.02040413,3089.8,3089.7,0.794]
[1720671234400,1.02040413,3089.8,3089.7,3.794]
[1720671235629,1.02040413,3089.9,3089.7,0.794]
[1720671235790,1.02040413,3089.9,3089.8,0.794]
[1720671235988,1.36059982,3090.0,3089.8,0.794]
[1720671236434,1.01891896,3089.9,3089.8,3.594995]
[1720671236790,1.01891896,3090.0,3089.8,3.594995]
[1720671236998,1.36059982,3090.1,3089.9,0.794]
[1720671237632,1.01867564,3090.0,3089.9,0.794]
[1720671238489,1.01883459,3090.0,3089.9,0.794]
[1720671239297,1.01883459,3090.0,3089.9,1.1534995]
[1720671239539,1.35823419,3090.1,3089.9,1.1534995]
[1720671239540,1.01883459,3090.1,3089.9,1.1534995]
[1720671239734,0.67902524,3090.0,3089.9,1.1534995]
[1720671239913,0.67902524,3090.1,3089.9,1.1534995]
[1720671240125,0.67902524,3090.1,3090.0,0.794]
[1720671240321,0.67902524,3090.1,3090.0,3.45724995]
[1720671240711,0.72400423,3090.1,3090.0,3.45724995]
[1720671241736,0.04497899,3090.1,3090.0,3.45724995]
[1720671244097,0.72400423,3090.1,3090.0,3.45724995]
[1720671244500,0.04497899,3090.1,3090.0,3.45724995]
[1720671245738,0.67902524,3090.3,3090.0,3.45724995]
[1720671245940,0.67902524,3090.2,3090.1,0.345725]
[1720671246161,0.67902524,3090.3,3090.1,1.139725]
[1720671247014,0.67902524,3090.4,3090.2,2.4164]
[1720671247216,0.67902524,3090.4,3090.3,0.794]
[1720671248720,0.67902524,3090.5,3090.3,0.794]
[1720671248914,0.67902524,3090.5,3090.4,0.794]
[1720671250123,1.01883459,3090.6,3090.4,0.794]
[1720671250323,0.67776241,3090.5,3090.4,0.794]
[1720671250950,1.01883459,3090.6,3090.4,0.794]
[1720671251156,0.67767988,3090.5,3090.4,0.794]
[1720671251322,1.01883459,3090.6,3090.4,0.794]
[1720671251649,0.67762571,3090.5,3090.4,0.794]
[1720671251818,0.7229398,3090.5,3090.4,0.794]
[1720671253017,1.06414868,3090.5,3090.4,0.794]
[1720671253213,0.04531409,3090.5,3090.4,0.794]
[1720671253418,0.72285698,3090.5,3090.4,0.794]
[1720671253878,0.72285698,3090.5,3090.4,3.1646]
[1720671254193,0.04531409,3090.5,3090.4,3.48106]
[1720671254592,1.01883459,3090.9,3090.4,3.48106]
[1720671254880,1.01883459,3091.0,3090.4,2.68706]
[1720671255086,0.275,3091.2,3090.4,2.68706]
[1720671255087,1.29383459,3091.2,3090.9,3.0539]
[1720671255292,1.29383459,3091.2,3091.1,0.794]
[1720671255655,0.275,3091.2,3091.1,0.794]
[1720671257242,0.275,3091.2,3091.1,1.09939]
[1720671259158,1.8935,3091.1,3090.2,6.737]
[1720671259350,1.0151404,3090.7,3090.5,0.794]
[1720671259545,1.0151404,3090.6,3090.3,0.794]
[1720671259745,1.0151404,3090.5,3090.3,0.794]
[1720671260551,1.0151404,3090.5,3090.1,0.4]
[1720671261087,1.0151404,3090.6,3090.1,0.4]
[1720671261398,1.0151404,3090.5,3090.1,0.4]
[1720671261598,1.8935,3091.1,3090.1,0.4]
[1720671261881,0.04437494,3090.4,3090.1,0.4]
[1720671262089,1.01548288,3090.5,3090.1,0.4]
[1720671262592,0.04437494,3090.4,3090.1,0.4]
[1720671264060,0.72151918,3090.4,3090.1,0.4]
[1720671264680,0.04437494,3090.4,3090.1,0.4]
[1720671265606,0.67714424,3090.6,3090.3,1.905]
[1720671266254,0.67714424,3090.6,3090.3,2.1355]
[1720671266992,0.04412054,3090.5,3090.3,2.1355]
[1720671267657,0.67714424,3090.7,3090.3,2.1355]
[1720671267860,0.04412054,3090.4,3090.3,2.1355]
[1720671268095,0.67714424,3090.7,3090.3,2.1355]
[1720671268310,0.04412054,3090.4,3090.3,1.905]
[1720671268599,0.275,3091.2,3090.3,1.905]
[1720671268600,0.6773734,3090.7,3090.3,1.905]
[1720671268792,0.6773734,3090.8,3090.3,1.905]
[1720671269001,0.04412054,3090.6,3090.4,2.2506]
[1720671269207,0.6773734,3090.8,3090.5,0.41556]
[1720671269350,0.6773734,3090.8,3090.7,1.905]
[1720671269661,0.6773734,3091.0,3090.7,1.905]
[1720671270050,0.6773734,3091.1,3090.7,1.905]
[1720671270492,0.6773734,3091.0,3090.7,1.905]
[1720671270656,0.6773734,3091.0,3090.8,0.1905]
[1720671271557,0.6773734,3090.9,3090.8,0.1905]
[1720671271778,0.6773734,3091.0,3090.8,0.1905]
[1720671272869,0.6773734,3091.1,3090.8,0.1905]
[1720671273064,1.2910601,3091.2,3090.8,0.1905]
[1720671273065,0.6773734,3091.0,3090.8,0.1905]
[1720671273265,0.6773734,3091.0,3090.9,0.20955]
[1720671273782,1.0160601,3091.0,3090.9,0.20955]
[1720671273981,1.0160601,3091.0,3090.8,0.1905]
[1720671274185,0.67778957,3091.0,3090.8,0.1905]
[1720671274501,0.67778957,3090.9,3090.8,0.1905]
[1720671275203,1.0160601,3090.9,3090.7,1.905]
[1720671275490,0.67794151,3090.8,3090.7,1.905]
[1720671275860,1.0160601,3090.9,3090.7,1.905]
[1720671276088,0.67816175,3090.8,3090.7,1.905]
[1720671276612,1.0160601,3090.9,3090.7,1.905]
[1720671277315,0.67839512,3090.8,3090.7,1.905]
[1720671277468,1.0160601,3090.8,3090.7,1.905]
[1720671277883,1.0160601,3090.9,3090.7,1.905]
[1720671278578,1.01845921,3090.8,3090.7,2.457056]
[1720671279574,1.01845921,3090.9,3090.7,2.457056]
[1720671279989,0.67897344,3090.8,3090.7,2.457056]
[1720671280194,0.67897344,3090.9,3090.7,2.457056]
[1720671280389,0.67897344,3090.9,3090.8,0.5457056]
[1720671281710,0.72335098,3090.9,3090.8,0.5457056]
[1720671282677,0.72335098,3090.9,3090.8,1.3387056]
[1720671283102,0.72335098,3090.9,3090.8,0.793]
[1720671283715,0.72335098,3090.9,3090.8,3.2001]
[1720671284103,0.72335098,3090.9,3090.8,6.2001]
[1720671288620,0.04437754,3090.9,3090.8,6.2001]
[1720671288785,0.72335098,3090.9,3090.8,6.2001]
[1720671288984,0.72335098,3090.9,3090.8,6.82011]
[1720671289830,0.04437754,3090.9,3090.8,6.82011]
[1720671291448,0.72335098,3090.9,3090.8,6.82011]
[1720671291819,0.04437754,3090.9,3090.8,6.82011]
[1720671292447,0.67897344,3091.0,3090.8,6.82011]
[1720671292657,0.67897344,3091.0,3090.9,3.682011]
[1720671295558,1.01845921,3091.1,3090.9,3.682011]
[1720671295851,1.63294561,3091.2,3091.0,0.793]
[1720671296223,1.63294561,3091.2,3090.9,3.0]
[1720671296424,1.35794561,3091.1,3090.6,3.0]
[1720671296613,1.69710945,3090.8,3090.5,0.2]
[1720671296820,1.40101299,3090.7,3090.5,0.2]
[1720671297135,3.90042169,3090.6,3090.5,0.2]
[1720671297313,2.20331224,3090.6,3090.5,0.993]
[1720671297751,2.24631315,3090.6,3090.5,0.993]
[1720671298819,4.28331254,3090.6,3090.5,0.993]
[1720671299557,2.20331224,3090.6,3090.5,0.2]
[1720671299716,2.24610287,3090.6,3090.5,0.2]
[1720671302048,2.24610287,3090.6,3090.4,0.793]
[1720671302257,2.2610692,3090.5,3090.4,0.793]
[1720671302548,2.3036158,3090.5,3090.4,0.793]
[1720671303445,2.38451465,3090.5,3090.4,0.793]
[1720671303672,2.38451465,3090.5,3089.6,6.737]
[1720671303673,0.26715689,3090.5,3090.2,0.793]
[1720671303829,2.03583647,3090.3,3090.2,0.793]
[1720671304166,0.48469684,3090.4,3090.2,0.793]
[1720671304468,0.04251543,3090.3,3090.2,0.793]
[1720671304638,2.07784661,3090.3,3090.2,0.793]
[1720671305055,1.77786754,3090.3,3090.2,0.793]
[1720671305239,2.01921357,3090.3,3090.2,0.793]
[1720671306277,3.91271357,3090.3,3089.9,0.793]
[1720671306440,2.13484603,3090.3,3089.9,0.793]
[1720671306835,0.04109825,3090.3,3090.1,0.793]
[1720671307040,1.69516692,3090.2,3090.1,0.793]
[1720671307239,1.69516692,3090.3,3090.1,0.793]
[1720671307536,1.39677682,3090.2,3090.1,0.793]
[1720671307743,0.04083332,3090.2,3090.1,0.793]
[1720671308051,1.69496543,3090.3,3090.1,0.793]
[1720671308240,0.04083332,3090.2,3090.1,0.793]
[1720671308660,1.01680774,3090.2,3090.1,0.793]
[1720671308853,1.05764106,3090.2,3090.1,0.793]
[1720671310084,1.05762719,3090.2,3090.1,0.793]
[1720671310264,1.05763523,3090.2,3090.1,0.793]
[1720671311545,1.39666863,3090.2,3090.1,0.793]
[1720671313247,1.73539932,3090.2,3090.1,0.793]
[1720671313778,0.04083332,3090.2,3090.1,0.793]
[1720671314080,1.69411671,3090.2,3090.1,0.793]
[1720671314388,1.73499573,3090.2,3090.1,0.793]
[1720671314692,1.73472034,3090.2,3090.1,0.793]
[1720671315187,1.39595371,3090.2,3090.1,0.793]
[1720671315483,0.04093202,3090.2,3090.1,0.793]
[1720671315784,1.01609857,3090.2,3090.1,0.793]
[1720671315944,1.39588878,3090.2,3090.1,0.793]
[1720671316585,2.04362312,3090.2,3090.1,0.793]
[1720671316752,2.04362312,3090.2,3089.9,0.793]
[1720671316753,0.3498348,3090.2,3089.9,0.793]
[1720671316960,1.3548207,3090.0,3089.9,0.793]
[1720671317185,0.04088006,3090.0,3089.9,0.793]
[1720671317373,1.39572585,3090.0,3089.9,0.793]
[1720671317773,0.04088006,3090.0,3089.9,0.793]
[1720671318081,1.39550347,3090.0,3089.9,0.793]
[1720671319248,1.73527851,3090.0,3089.9,0.793]
[1720671320372,2.03486502,3090.0,3089.9,0.793]
[1720671320579,1.73527851,3090.0,3089.9,0.793]
[1720671321294,2.03486412,3090.0,3089.9,0.793]
[1720671321452,1.73527851,3090.0,3089.9,0.793]
[1720671321848,2.3729843,3090.0,3089.7,0.793]
[1720671322084,2.16585705,3089.9,3089.7,0.793]
[1720671322400,3.8858292,3089.8,3089.5,0.793]
[1720671322597,2.03326866,3089.7,3089.5,0.793]
[1720671322898,1.35390037,3089.6,3089.5,0.793]
[1720671323396,1.39478043,3089.6,3089.5,0.793]
[1720671323763,0.04088006,3089.6,3089.5,0.793]
[1720671324102,1.39478043,3089.6,3089.5,0.793]
[1720671324618,0.04088006,3089.6,3089.5,0.793]
[1720671324759,2.23165914,3089.6,3088.5,2.274]
[1720671324991,1.01509801,3089.1,3088.9,0.793]
[1720671325187,0.27755699,3089.0,3088.9,0.793]
[1720671325387,1.0554815,3089.0,3088.9,0.793]
[1720671326090,0.71717645,3089.0,3088.9,0.793]
[1720671326609,0.04070079,3089.0,3088.5,4.18]
[1720671329235,0.67647566,3089.1,3088.5,4.18]
[1720671329523,0.04041233,3088.9,3088.5,4.598]
[1720671329685,0.67647566,3089.2,3088.5,4.598]
[1720671329883,0.04041233,3088.8,3088.5,4.598]
[1720671330086,0.67647566,3089.2,3088.5,4.598]
[1720671330307,0.04041233,3088.7,3088.5,4.598]
[1720671330516,0.67647566,3089.2,3088.6,0.4598]
[1720671330722,0.67647566,3089.3,3088.6,0.4598]
[1720671330941,0.04041233,3089.1,3088.5,4.18]
[1720671331093,0.71642289,3089.2,3088.5,4.18]
[1720671331290,0.67600796,3089.3,3088.5,4.18]
[1720671331624,0.67600796,3089.5,3088.6,2.2957]
[1720671331827,0.04041493,3089.4,3089.0,2.2957]
[1720671332137,0.67600796,3089.8,3089.0,2.2957]
[1720671332289,1.01401194,3090.0,3089.1,2.2541]
[1720671332290,0.040285,3089.3,3089.1,2.2541]
[1720671332491,0.67600796,3090.0,3089.1,2.2541]
[1720671332697,0.67600796,3090.0,3089.1,5.2541]
[1720671332892,0.03893783,3089.9,3089.2,0.82541]
[1720671333133,0.71494579,3089.9,3089.2,0.82541]
[1720671333336,0.67600796,3089.8,3089.2,0.82541]
[1720671333696,0.67600796,3089.9,3089.2,0.82541]
[1720671333893,0.03893783,3089.7,3089.2,0.82541]
[1720671334129,0.67600796,3090.0,3089.3,2.513951]
[1720671334298,0.67600796,3090.1,3089.3,2.513951]
[1720671334498,0.03893783,3089.9,3089.3,2.513951]
[1720671334736,0.67600796,3090.1,3089.3,2.513951]
[1720671335252,0.03893783,3090.0,3089.4,2.2541]
[1720671335453,0.03893783,3090.0,3089.5,0.4768051]
[1720671336340,0.71494579,3090.0,3089.7,1.906]
[1720671336568,0.03893783,3090.0,3089.7,1.906]
[1720671336835,0.67600796,3090.7,3089.8,2.3322]
[1720671337043,0.03921587,3090.6,3090.5,4.2382]
[1720671337351,0.67600796,3090.8,3090.5,4.2382]
[1720671337840,0.03921587,3090.7,3090.5,4.2382]
[1720671338043,0.67600796,3090.8,3090.5,4.66202]
[1720671338208,0.03921587,3090.7,3090.5,4.66202]
[1720671338410,0.67600796,3091.0,3090.5,4.66202]
[1720671338634,0.03932237,3090.9,3090.5,4.66202]
[1720671338803,0.67600796,3091.1,3090.5,4.66202]
[1720671339139,0.03932237,3091.0,3090.6,0.466202]
[1720671339942,0.95100796,3091.2,3090.6,0.466202]
[1720671340144,0.03932237,3090.9,3090.6,0.466202]
[1720671340343,0.95100796,3091.2,3090.6,0.466202]
[1720671340552,0.03932237,3090.8,3090.6,0.466202]
[1720671340841,0.67600796,3091.1,3090.7,0.4704402]
[1720671341650,0.03932237,3091.0,3090.7,0.4704402]
[1720671343207,0.71533033,3091.0,3090.7,0.4704402]
[1720671343403,0.03932237,3091.0,3090.7,0.4704402]
[1720671343617,0.71533033,3091.0,3090.5,4.2382]
[1720671344849,0.03932237,3091.0,3090.5,4.2382]
[1720671345143,0.71533033,3091.0,3090.5,4.2382]
[1720671345718,0.03932237,3091.0,3090.5,4.2382]
[1720671346024,0.03932237,3091.0,3090.6,0.42382]
[1720671347253,0.95100796,3091.2,3090.6,0.42382]
[1720671347417,0.03989388,3091.1,3090.6,0.42382]
[1720671347613,0.03989388,3091.1,3090.7,2.48]
[1720671349344,0.275,3091.2,3090.7,2.48]
[1720671349525,0.03990686,3091.0,3090.8,0.290382]
[1720671349852,0.03990686,3090.9,3090.8,0.290382]
[1720671350048,0.275,3091.2,3090.8,0.290382]
[1720671350252,0.03990686,3091.1,3090.8,0.290382]
[1720671353075,0.03990686,3091.1,3091.0,2.4301]
[1720671353366,0.03990686,3091.1,3091.0,3.1927482]
[1720671353546,0.275,3091.2,3091.0,3.1927482]
[1720671354269,0.275,3091.2,3091.1,5.4867]
[1720671359887,0.275,3091.2,3091.1,3.0]
[1720671360086,0.275,3091.2,3091.0,0.2]
[1720671360788,0.03905165,3091.1,3091.0,0.2]
[1720671361603,0.03905165,3091.1,3091.0,0.4]
[1720671362110,0.275,3091.2,3091.0,0.4]
[1720671362264,0.275,3091.2,3091.0,2.8333]
[1720671362765,0.275,3091.2,3091.0,3.30723]
[1720671364196,0.275,3091.2,3091.0,2.8333]
[1720671365368,0.275,3091.2,3091.1,3.0]
[1720671365989,0.275,3091.2,3091.1,2.3001]
[1720671366197,0.275,3091.2,3091.1,5.3001]
[1720671372601,0.275,3091.2,3091.1,5.0251]
[1720671372920,0.275,3091.2,3091.1,2.0251]
[1720671373322,0.275,3091.2,3091.1,2.75821]
[1720671373572,0.275,3091.2,3091.1,5.75821]
[1720671374886,0.275,3091.2,3091.1,3.0]
[1720671375161,0.275,3091.2,3091.0,0.4]
[1720671376331,0.03915821,3091.1,3091.0,0.4]
[1720671376733,0.01415821,3091.2,3091.0,0.4]
[1720671376949,0.03779837,3091.1,3091.0,0.4]
[1720671379369,0.03779837,3091.1,3091.0,0.87526]
[1720671379532,0.01415821,3091.2,3091.0,0.87526]
[1720671379995,0.03772039,3091.1,3091.0,0.87526]
[1720671380273,0.01415821,3091.2,3091.0,0.87526]
[1720671380834,0.03765542,3091.1,3091.0,0.87526]
[1720671381139,0.01415821,3091.2,3091.0,3.87526]
[1720671381329,0.01415821,3091.2,3091.1,0.822786]
[1720671381670,0.05187601,3091.2,3091.1,0.822786]
[1720671382675,0.01415821,3091.2,3091.1,0.822786]
[1720671383145,0.01415821,3091.2,3091.1,1.372786]
[1720671385448,0.01415821,3091.2,3091.1,3.278786]
[1720671385643,0.01415821,3091.2,3091.1,6.278786]
[1720671385975,0.01415821,3091.2,3091.1,4.906]
[1720671386176,0.69301679,3091.2,3091.1,4.906]
[1720671386333,0.05200595,3091.2,3091.1,1.906]
[1720671386536,0.35099497,3091.2,3091.0,0.4]
[1720671386730,4.5046897,3091.1,3091.0,0.4]
[1720671386973,2.97536236,3091.1,3091.0,0.4]
[1720671389742,5.35181281,3091.1,3091.0,0.4]
[1720671389947,5.97568715,3091.1,3091.0,0.4]
[1720671390256,6.0565847,3091.1,3091.0,0.4]
[1720671391878,6.0565847,3091.1,3090.1,1.906]
[1720671392068,1.6963986,3090.2,3089.7,4.906]
[1720671392286,0.67832361,3089.8,3089.7,4.906]
[1720671392599,0.03746555,3089.8,3089.7,1.906]
[1720671392788,0.71578916,3089.8,3089.7,4.906]
[1720671393486,0.71578916,3089.8,3089.7,1.906]
[1720671393689,0.71553313,3089.8,3089.7,1.906]
[1720671393989,1.05535933,3089.8,3089.7,1.906]
[1720671394481,0.03746555,3089.8,3089.7,1.906]
[1720671395243,0.71498893,3089.8,3089.7,1.906]
[1720671396858,0.03746555,3089.8,3089.7,1.906]
[1720671398879,0.67752338,3089.8,3089.7,1.906]
[1720671399190,1.22441735,3089.8,3089.2,1.906]
[1720671399390,0.88317938,3089.8,3089.2,1.906]
[1720671399691,0.8831256,3089.8,3089.2,1.906]
[1720671399895,0.67660203,3089.7,3089.2,1.906]
[1720671400064,0.03687519,3089.6,3089.2,1.906]
[1720671400471,0.67660203,3089.8,3089.2,1.906]
[1720671400783,0.03687519,3089.7,3089.2,2.3966]
[1720671400957,0.03687519,3089.7,3089.2,4.8085]
[1720671401156,0.67660203,3090.0,3089.6,1.906]
[1720671401376,0.67660203,3090.1,3089.6,1.906]
[1720671401567,0.03687519,3089.9,3089.6,1.906]
[1720671401796,0.67660203,3090.1,3089.6,1.906]
[1720671402001,0.03687519,3089.8,3089.6,1.906]
[1720671402301,0.03687519,3089.7,3089.6,1.906]
[1720671402485,0.67660203,3090.0,3089.3,3.0]
[1720671402657,0.03687519,3089.9,3089.2,1.906]
[1720671403866,0.71347722,3089.9,3089.2,1.906]
[1720671404066,0.71347722,3089.9,3089.7,0.2]
[1720671404477,0.03687519,3089.9,3089.7,0.2]
[1720671404811,0.67660203,3090.1,3089.7,0.2]
[1720671405121,0.16915051,3090.0,3089.7,0.2]
[1720671405278,0.2060257,3090.0,3089.7,0.2]
[1720671405667,0.03687519,3090.0,3089.7,0.2]
[1720671405866,0.67660203,3090.2,3089.7,0.2]
[1720671406094,0.03682054,3090.1,3089.7,0.2]
[1720671408310,0.03682054,3090.1,3089.7,0.4]
[1720671408804,2.84510203,3090.5,3089.7,2.306]
[1720671408975,0.03682315,3090.0,3089.7,2.306]
[1720671409174,3.29876274,3090.5,3089.7,2.306]
[1720671409373,0.03682315,3089.9,3089.7,2.306]
[1720671409609,0.67660203,3090.4,3089.7,2.306]
[1720671409774,0.03682315,3089.8,3089.7,2.306]
[1720671410306,3.29876274,3090.5,3089.7,2.306]
[1720671410483,0.03682315,3089.8,3089.7,2.306]
[1720671410684,3.29876274,3090.5,3089.7,2.306]
[1720671410888,0.03682315,3090.4,3089.7,2.306]
[1720671411411,0.47187204,3090.4,3089.7,2.306]
[1720671411621,0.67660203,3090.3,3089.7,2.306]
[1720671412178,0.03682315,3090.2,3089.7,2.306]
[1720671412817,1.11165092,3090.4,3089.7,2.306]
[1720671412983,0.03682315,3090.1,3089.7,2.306]
[1720671413184,0.67660203,3090.4,3089.7,2.306]
[1720671413405,0.03682315,3090.0,3089.7,2.306]
[1720671413606,0.67660203,3090.4,3089.7,2.306]
[1720671413779,0.03682315,3089.9,3089.7,2.306]
[1720671413990,0.75750993,3090.5,3089.7,2.306]
[1720671414203,0.03687259,3089.8,3089.7,2.306]
[1720671414427,0.67660203,3090.4,3089.7,2.5366]
[1720671414593,0.67660203,3090.4,3089.7,2.306]
[1720671414930,0.03687259,3090.3,3089.7,2.306]
[1720671416095,0.03687259,3090.2,3089.7,2.306]
[1720671416417,0.67587159,3090.4,3089.7,2.306]
[1720671416616,0.03687259,3090.1,3089.7,2.306]
[1720671416795,0.67587159,3090.4,3089.7,2.306]
[1720671417115,0.37587159,3090.4,3089.7,2.306]
[1720671417321,0.03687259,3090.3,3089.7,2.306]
[1720671417618,0.11778331,3090.3,3089.7,2.306]
[1720671418120,0.03687259,3090.3,3089.7,2.306]
[1720671419404,0.28520619,3090.3,3089.7,2.306]
[1720671419603,0.03687259,3090.3,3089.7,2.306]
[1720671420904,1.05067998,3090.3,3089.7,2.306]
[1720671421101,0.03687259,3090.3,3089.7,2.306]
[1720671422106,1.01380739,3090.5,3089.7,2.306]
[1720671422304,0.03695064,3090.4,3089.7,2.306]
[1720671422529,0.03695064,3090.4,3089.7,2.8366]
[1720671422838,0.03695064,3090.4,3089.8,2.3496]
[1720671423205,0.03695064,3090.4,3089.8,5.3496]
[1720671423522,0.03698448,3090.3,3090.2,2.3633]
[1720671423935,1.01380739,3090.7,3090.2,2.3633]
[1720671424293,1.01380739,3090.7,3090.2,2.79023]
[1720671424294,0.03698448,3090.6,3090.2,2.79023]
[1720671426613,0.03698448,3090.6,3090.2,2.3633]
[1720671426938,0.67708254,3090.4,3090.2,2.3633]
[1720671427156,0.67708254,3090.5,3090.2,2.3633]
[1720671427503,0.03698448,3090.4,3090.2,2.3633]
[1720671428150,0.71406702,3090.4,3090.2,2.3633]
[1720671428336,0.71406702,3090.4,3090.2,2.79023]
[1720671430325,0.67708254,3090.3,3090.2,2.79023]
[1720671430527,0.71418665,3090.3,3090.2,2.79023]
[1720671431334,0.03710411,3090.3,3090.2,2.79023]
[1720671431737,1.0509115,3090.3,3090.2,2.79023]
[1720671432052,0.03710411,3090.3,3090.2,2.79023]
[1720671432453,1.0509115,3090.3,3090.2,2.79023]
[1720671433972,0.03710411,3090.3,3090.2,3.42693]
[1720671434124,0.03710411,3090.3,3090.2,2.87693]
[1720671434325,0.03710411,3090.3,3090.2,5.87693]
[1720671434623,0.71633991,3090.3,3090.2,6.66993]
[1720671434927,0.03710411,3090.3,3090.2,6.66993]
[1720671435127,0.71633991,3090.3,3090.2,6.66993]
[1720671435848,0.71620281,3090.3,3090.2,6.66993]
[1720671436644,0.03710411,3090.3,3090.2,6.66993]
[1720671438662,0.71620281,3090.3,3089.9,2.4372]
[1720671438872,0.67890536,3090.0,3089.9,2.4372]
[1720671439161,1.05601747,3090.0,3089.9,3.2302]
[1720671439954,0.71629627,3090.0,3089.9,3.2302]
[1720671440133,0.03736942,3090.0,3089.9,3.2302]
[1720671440764,0.03736942,3090.0,3089.9,7.66522]
[1720671441826,1.01864805,3090.4,3089.9,7.66522]
[1720671441827,0.67894349,3090.2,3089.9,7.66522]
[1720671442454,0.03736942,3090.1,3089.9,7.66522]
[1720671442978,0.03736942,3090.1,3090.0,2.4372]
[1720671443265,0.03736942,3090.1,3090.0,5.4372]
[1720671443471,0.67894349,3090.4,3090.0,6.203722]
[1720671443630,0.03730179,3090.1,3090.0,6.203722]
[1720671443832,0.67894349,3090.4,3090.3,1.905]
[1720671444157,0.67894349,3090.5,3090.3,1.905]
[1720671444665,0.67894349,3090.4,3090.3,1.905]
[1720671444973,0.67894349,3090.5,3090.3,2.3955]
[1720671445776,0.67874428,3090.5,3090.4,2.4372]
[1720671446365,1.01811642,3090.5,3090.4,2.4372]
[1720671446571,1.01811642,3090.5,3090.1,5.4385]
[1720671446728,1.01830491,3090.2,3089.9,2.105]
[1720671446931,0.67889867,3090.1,3089.9,5.105]
[1720671447128,0.67889867,3090.2,3090.0,2.3747]
[1720671447330,0.67889867,3090.2,3090.0,5.3747]
[1720671449285,0.67889867,3090.1,3090.0,5.3747]
[1720671452759,0.67889867,3090.2,3090.0,5.3747]
[1720671452981,0.67889867,3090.1,3090.0,5.3747]
[1720671454099,0.67933063,3090.1,3090.0,5.3747]
[1720671454399,1.01830491,3090.2,3090.0,5.3747]
[1720671454905,0.67941512,3090.1,3090.0,5.3747]
[1720671455398,1.01830491,3090.1,3090.0,5.3747]
[1720671455762,1.01830491,3090.1,3090.0,3.0]
[1720671456094,1.01919682,3090.1,3090.0,3.0]
[1720671456495,1.01929954,3090.1,3090.0,3.0]
[1720671456687,0.29934388,3090.1,3090.0,3.0]
[1720671456992,1.01927701,3090.1,3090.0,3.0]
[1720671458473,0.29934749,3090.1,3090.0,3.0]
[1720671458860,1.65683605,3090.1,3090.0,3.0]
[1720671459060,1.65866932,3090.1,3090.0,3.0]
[1720671459494,3.82716935,3090.1,3089.9,0.6]
[1720671459673,0.29934033,3090.0,3089.9,0.6]
[1720671460078,2.67839882,3090.0,3089.9,0.6]
[1720671460496,0.29934033,3090.0,3089.9,0.6]
[1720671460696,0.79212215,3090.0,3089.9,0.6]
[1720671460924,0.87304123,3090.0,3089.9,0.6]
[1720671461535,3.04154123,3090.0,3089.9,0.6]
[1720671461698,3.04154123,3090.0,3088.5,12.46]
[1720671461699,2.1685,3089.9,3088.6,1.905]
[1720671461903,1.35924584,3088.8,3088.6,1.905]
[1720671462157,1.35924584,3088.7,3088.6,1.905]
[1720671462443,1.39580505,3088.7,3088.6,1.905]
[1720671462750,0.03655921,3088.7,3088.6,1.905]
[1720671463345,0.03634579,3088.7,3088.6,1.905]
[1720671463646,0.67881464,3088.8,3088.6,1.905]
[1720671463811,0.03634579,3088.7,3088.6,2.0955]
[1720671464035,0.03634579,3088.7,3088.6,4.4945]
[1720671464231,0.03634579,3088.7,3088.6,7.4945]
[1720671464451,0.03634579,3088.7,3088.6,5.5895]
[1720671464607,0.67881464,3089.2,3088.6,5.5895]
[1720671464803,0.67881464,3089.2,3089.1,1.905]
[1720671465009,0.67881464,3089.3,3089.1,1.905]
[1720671468134,0.67881464,3089.4,3089.1,1.905]
[1720671468342,0.67881464,3089.3,3089.1,1.905]
[1720671470502,0.67881464,3089.4,3089.1,1.905]
[1720671470707,0.67881464,3089.3,3089.1,1.905]
[1720671472314,0.67881464,3089.2,3088.7,4.905]
[1720671472508,0.67881464,3089.1,3088.7,4.905]
[1720671472713,0.67881464,3089.0,3088.7,1.905]
[1720671473059,0.67881464,3088.9,3088.7,1.905]
[1720671474446,0.8485719,3088.9,3088.7,1.905]
[1720671474647,0.8485719,3088.9,3088.3,4.905]
[1720671474843,0.67881464,3088.8,3088.3,4.905]
[1720671475873,0.67881464,3089.0,3088.3,4.905]
[1720671476170,1.018758,3089.1,3088.3,4.905]
[1720671476171,0.67881464,3088.9,3088.3,4.905]
[1720671476372,0.67881464,3089.0,3088.3,4.905]
[1720671476663,0.03613491,3088.9,3088.3,4.905]
[1720671476865,0.03613491,3088.9,3088.3,6.31861]
[1720671477367,0.03613491,3088.9,3088.7,1.905]
[1720671477665,0.67881464,3089.2,3088.8,2.4324]
[1720671477873,0.67881464,3089.3,3088.8,2.4324]
[1720671478172,0.67881464,3089.5,3089.1,1.905]
[1720671478373,0.67703506,3089.4,3089.1,1.905]
[1720671478734,0.67703506,3089.5,3089.1,1.905]
[1720671479570,0.67703506,3089.4,3089.1,1.905]
[1720671479945,0.67703506,3089.3,3089.1,1.905]
[1720671480177,0.67703506,3089.4,3089.1,1.905]
[1720671480610,1.01555259,3089.5,3089.1,1.905]
[1720671480611,0.67703506,3089.5,3089.1,1.905]
[1720671483220,0.67703506,3089.4,3089.1,1.905]
[1720671483593,0.67703506,3089.3,3089.1,1.905]
[1720671484102,0.67703506,3089.4,3089.1,1.905]
[1720671485020,0.67703506,3089.4,3088.8,5.4324]
[1720671485021,0.67703506,3089.3,3088.8,3.0]
[1720671485322,0.67703506,3089.3,3088.7,4.905]
[1720671485522,0.67703506,3089.2,3088.7,4.905]
[1720671485831,1.35407013,3089.5,3088.7,6.31738]
[1720671485832,0.67703506,3089.3,3088.7,6.31738]